bitfinex/quotes_ETHUSD_20260106
["timestamp","ask_amount","ask_price","bid_price","bid_amount"]
[1767665488626,0.95236423,3212.0,3211.2,0.91885104]
[1767665488825,0.95136423,3211.9,3211.0,0.002]
[1767665489154,0.95136423,3211.7,3211.0,0.002]
[1767665494164,0.001,3212.0,3211.1,0.94898722]
[1767665494366,0.001,3212.0,3211.0,0.002]
[1767665494367,0.001,3212.0,3211.7,0.03282325]
[1767665494652,0.99538089,3212.0,3211.7,0.03282325]
[1767665500571,0.001,3212.0,3211.7,0.03282325]
[1767665503572,0.001,3212.0,3211.7,0.98181047]
[1767665503866,0.001,3212.0,3211.7,4.0954192]
[1767665504033,0.001,3212.0,3211.8,0.40954192]
[1767665504945,0.001,3212.0,3211.7,3.14643748]
[1767665505141,0.001,3212.0,3211.7,4.0954247]
[1767665505347,0.001,3212.0,3211.8,3.11349218]
[1767665505861,0.001,3212.3,3211.8,4.06248795]
[1767665506252,0.001,3212.3,3211.8,3.11350073]
[1767665506459,0.99538089,3212.3,3211.9,0.3146324]
[1767665509138,0.001,3212.0,3211.9,0.3146324]
[1767665509339,3.11219901,3213.2,3212.0,0.94898722]
[1767665509540,0.99438089,3213.0,3212.0,0.94898722]
[1767665511367,3.92810041,3213.3,3212.2,0.94898722]
[1767665511368,0.99438089,3213.2,3212.2,0.94898722]
[1767665513347,0.99438089,3213.2,3212.3,0.94898722]
[1767665514848,0.99438089,3213.2,3212.3,0.94741188]
[1767665515048,0.99438089,3213.2,3212.4,0.40605072]
[1767665515679,0.99438089,3213.2,3212.4,1.40375104]
[1767665518646,3.92801229,3213.4,3212.5,0.99770032]
[1767665518647,0.96643016,3213.4,3212.5,0.99770032]
[1767665519382,0.96643016,3213.9,3212.5,0.99770032]
[1767665519580,0.96643016,3213.8,3212.6,1.30912911]
[1767665519782,0.96643016,3213.8,3212.5,0.815]
[1767665520151,0.96643016,3213.6,3212.6,3.11274357]
[1767665520366,0.96643016,3213.6,3212.5,4.92550103]
[1767665520876,0.001,3212.9,3212.5,0.815]
[1767665521081,0.95272288,3212.9,3212.4,0.40605072]
[1767665521254,0.95272288,3212.9,3212.3,0.002]
[1767665522061,0.95172288,3212.7,3212.3,0.002]
[1767665525254,0.95272288,3212.9,3212.3,0.002]
[1767665525589,0.95172288,3212.8,3212.3,0.002]
[1767665525764,0.95172288,3212.6,3212.3,0.002]
[1767665527696,0.001,3212.9,3212.3,0.95705821]
[1767665529893,0.001,3212.9,3212.4,0.95505821]
[1767665530553,0.001,3212.9,3212.5,0.95505821]
[1767665532887,0.001,3212.6,3212.5,0.95505821]
[1767665533093,0.001,3212.6,3212.5,1.36205644]
[1767665533585,0.001,3212.6,3212.5,4.4748969]
[1767665533882,0.001,3212.6,3212.5,1.36205644]
[1767665534291,0.001,3212.6,3212.5,0.95505821]
[1767665534484,0.001,3212.6,3212.3,3.11503101]
[1767665534786,0.001,3212.6,3212.3,4.07008922]
[1767665535184,0.001,3212.6,3212.3,0.95705821]
[1767665536058,0.001,3212.6,3212.3,0.002]
[1767665536373,0.001,3212.6,3212.3,0.79202318]
[1767665537381,0.001,3212.6,3212.3,0.002]
[1767665543794,0.001,3212.6,3212.3,0.95705821]
[1767665544186,0.001,3212.9,3212.4,4.06799557]
[1767665544390,0.95172288,3213.2,3212.5,0.95505821]
[1767665545994,0.95172288,3213.2,3212.3,0.95705821]
[1767665546195,0.95172288,3213.2,3212.3,1.44557061]
[1767665546894,0.95172288,3213.2,3212.3,4.55859353]
[1767665548002,0.95172288,3213.2,3212.3,1.44557061]
[1767665548695,0.95172288,3213.2,3212.3,4.55859996]
[1767665552285,0.95172288,3213.2,3212.4,1.01510971]
[1767665552485,0.95172288,3213.2,3212.5,0.46186515]
[1767665553006,0.95172288,3213.2,3212.4,0.98398034]
[1767665553304,0.95172288,3213.2,3212.5,0.0311284]
[1767665553508,0.95172288,3213.2,3212.6,0.03112743]
[1767665553706,0.95172288,3213.2,3212.4,1.01510971]
[1767665553910,0.95172288,3213.2,3212.5,4.09680489]
[1767665554081,0.95172288,3213.2,3212.6,0.75521404]
[1767665554281,0.95172288,3213.2,3212.6,1.70806695]
[1767665555005,0.95172288,3213.2,3212.6,0.72408661]
[1767665555190,0.95172288,3213.2,3212.4,0.815]
[1767665556110,0.001,3212.9,3212.4,0.815]
[1767665556312,0.97909399,3212.9,3212.4,0.815]
[1767665564515,0.97909399,3212.9,3212.3,0.002]
[1767665564714,0.97809399,3212.8,3212.3,0.002]
[1767665567813,0.97809399,3212.8,3212.6,0.002]
[1767665573818,0.97809399,3212.8,3212.3,0.002]
[1767665574015,0.97809399,3212.6,3212.3,0.002]
[1767665580906,0.97076796,3212.8,3212.3,0.002]
[1767665581107,0.001,3212.9,3212.3,0.92403664]
[1767665582534,0.001,3212.9,3212.5,0.92203664]
[1767665583035,0.001,3212.9,3212.6,0.92203664]
[1767665583335,0.001,3212.9,3212.7,1.32551632]
[1767665585130,0.97076796,3213.8,3212.9,0.92203664]
[1767665585342,0.28790071,3213.7,3212.9,0.92203664]
[1767665585521,1.25866867,3213.6,3212.9,0.92203664]
[1767665585722,0.97076796,3213.6,3212.9,0.92203664]
[1767665585948,0.97076796,3213.6,3213.0,1.32549241]
[1767665586506,0.97076796,3214.0,3213.1,0.92203664]
[1767665586830,0.97076796,3213.8,3213.1,0.92203664]
[1767665587420,0.97076796,3213.7,3212.8,0.92203664]
[1767665588332,0.97076796,3213.7,3212.8,4.03458226]
[1767665588531,0.97076796,3213.7,3213.0,0.92203664]
[1767665588834,0.97076796,3213.7,3213.0,4.03438068]
[1767665589048,0.97076796,3213.7,3213.1,4.03428605]
[1767665589213,0.97076796,3214.1,3213.1,0.92203664]
[1767665589411,0.97076796,3213.9,3213.1,0.92203664]
[1767665590046,0.97076796,3213.9,3213.2,0.92203664]
[1767665590632,0.97076796,3214.0,3212.9,0.48495823]
[1767665590834,0.97076796,3214.0,3212.9,0.92203664]
[1767665591614,0.97176796,3213.6,3212.9,0.92203664]
[1767665595125,0.97176796,3213.6,3212.9,4.03447484]
[1767665595525,0.97176796,3213.6,3213.0,0.92203664]
[1767665595858,0.97176796,3213.6,3213.1,0.40344748]
[1767665596022,0.97176796,3213.6,3213.0,0.92203664]
[1767665596551,0.001,3213.6,3213.0,0.92203664]
[1767665597250,0.001,3213.6,3213.2,0.92203664]
[1767665603238,0.001,3213.6,3212.8,3.11254102]
[1767665603239,0.001,3213.6,3212.8,0.92203664]
[1767665603441,0.001,3213.3,3212.8,4.03453605]
[1767665603643,0.001,3213.3,3212.9,1.40699024]
[1767665604158,0.001,3213.3,3212.9,4.51942813]
[1767665604461,0.001,3213.3,3213.0,4.03436287]
[1767665604833,0.001,3213.3,3212.9,0.4849536]
[1767665604834,0.001,3213.6,3213.2,0.92203664]
[1767665605155,0.001,3213.6,3213.2,4.03418555]
[1767665605357,0.001,3213.6,3213.3,1.3254552]
[1767665605556,0.815,3214.2,3213.4,0.92203664]
[1767665605557,1.78576796,3214.2,3213.4,0.92203664]
[1767665605857,0.97076796,3214.4,3213.4,0.92203664]
[1767665606758,0.97076796,3214.9,3213.6,0.92203664]
[1767665607056,0.97076796,3214.6,3213.7,0.92203664]
[1767665607654,0.97076796,3214.6,3213.4,4.6401472]
[1767665607655,0.97076796,3214.6,3213.4,4.03399915]
[1767665608065,0.97076796,3214.6,3213.5,0.92203664]
[1767665608367,0.97076796,3214.6,3213.5,4.03390521]
[1767665608538,0.97076796,3214.6,3213.6,4.03380561]
[1767665608737,0.97076796,3214.6,3213.7,0.40338056]
[1767665609162,0.97076796,3214.6,3213.6,4.03380071]
[1767665609380,0.97076796,3214.6,3213.7,0.92203664]
[1767665610139,0.97076796,3214.6,3213.8,0.92203664]
[1767665610942,0.97076796,3214.9,3213.8,0.92203664]
[1767665611279,0.97076796,3214.9,3214.0,0.92106016]
[1767665611575,0.97076796,3214.9,3214.0,1.32431462]
[1767665611941,0.90055941,3214.8,3214.0,1.32431462]
[1767665612873,0.90055941,3214.8,3214.0,0.92106016]
[1767665613165,0.90055941,3214.7,3214.0,0.92106016]
[1767665613345,0.90055941,3214.7,3213.7,3.92665902]
[1767665613346,0.90055941,3214.7,3213.7,0.815]
[1767665614538,0.90055941,3214.7,3213.3,0.40341856]
[1767665614870,0.90055941,3214.7,3213.4,3.92690904]
[1767665615071,0.90055941,3214.4,3213.4,0.815]
[1767665615267,0.90055941,3214.3,3213.4,0.815]
[1767665616157,0.90055941,3214.3,3213.4,3.92695373]
[1767665616355,0.90055941,3214.3,3213.4,4.84801389]
[1767665616554,0.90055941,3214.3,3213.5,0.48480139]
[1767665618981,0.90055941,3214.3,3213.5,4.51769693]
[1767665619182,0.90055941,3214.3,3213.6,0.92106016]
[1767665619486,0.90055941,3214.3,3213.7,0.92106016]
[1767665621485,0.90055941,3214.3,3213.5,3.5966302]
[1767665621486,0.90055941,3214.3,3213.5,0.48480139]
[1767665621694,0.90055941,3214.2,3213.4,0.92106016]
[1767665624592,0.90055941,3214.2,3213.4,4.03301392]
[1767665625784,0.90155941,3214.5,3213.5,0.92106016]
[1767665626089,0.90055941,3214.4,3213.5,0.92106016]
[1767665627290,0.001,3214.0,3213.5,0.92106016]
[1767665627497,0.001,3214.0,3213.6,0.40330139]
[1767665628576,0.001,3214.0,3213.6,1.32436155]
[1767665628777,0.001,3214.0,3213.7,0.92106016]
[1767665629092,0.001,3214.0,3213.8,0.03111581]
[1767665629468,0.001,3214.0,3213.7,0.92106016]
[1767665631197,0.001,3214.0,3213.8,0.03111581]
[1767665631373,0.001,3214.0,3213.7,0.92106016]
[1767665632280,0.001,3214.0,3213.7,1.36468237]
[1767665633672,0.001,3214.0,3213.5,0.92106016]
[1767665635805,0.001,3214.0,3213.4,3.11196546]
[1767665635990,0.001,3214.0,3213.4,3.0]
[1767665636197,0.001,3214.0,3213.3,1.77213906]
[1767665636700,0.95929509,3214.0,3213.3,4.88418627]
[1767665636909,0.95929509,3214.0,3213.4,0.48841863]
[1767665637204,0.95929509,3214.0,3213.4,3.60038565]
[1767665637506,0.95929509,3214.0,3213.4,4.55752471]
[1767665637900,0.95929509,3214.0,3213.4,1.44555769]
[1767665639503,0.001,3213.7,3213.4,0.48841863]
[1767665639704,0.001,3213.7,3213.5,1.39868498]
[1767665641410,0.001,3213.7,3213.5,0.44154592]
[1767665641621,0.95328168,3213.7,3212.9,0.4849536]
[1767665641943,0.95328168,3213.7,3213.3,0.815]
[1767665642110,0.95328168,3213.7,3212.8,0.815]
[1767665642289,0.95228168,3213.6,3212.8,0.815]
[1767665642616,0.95228168,3213.6,3212.8,3.92748486]
[1767665643219,0.95228168,3213.6,3212.8,0.815]
[1767665643396,0.95228168,3213.6,3212.8,3.92754347]
[1767665643728,0.95328168,3213.7,3212.9,5.55461377]
[1767665644013,0.95328168,3213.7,3213.0,1.76321572]
[1767665645201,0.95328168,3213.7,3212.7,0.815]
[1767665645406,0.95328168,3213.7,3212.7,3.9276423]
[1767665645804,0.95328168,3213.7,3212.7,4.84210887]
[1767665646185,0.95328168,3213.7,3212.8,0.91446657]
[1767665646402,0.95328168,3213.7,3212.9,0.48421089]
[1767665649320,0.95328168,3213.7,3213.0,0.03112356]
[1767665649518,0.95328168,3213.7,3213.0,0.94559013]
[1767665650518,0.95328168,3213.7,3213.0,0.91446657]
[1767665651025,0.95328168,3213.7,3213.0,0.91646657]
[1767665651315,0.95328168,3213.7,3213.1,0.45130953]
[1767665652098,0.95328168,3213.7,3213.0,0.91646657]
[1767665652498,0.95328168,3213.7,3213.0,0.002]
[1767665652723,0.95228168,3213.6,3213.0,0.002]
[1767665659838,0.95228168,3213.5,3213.0,0.002]
[1767665669930,0.95228168,3213.4,3213.0,0.002]
[1767665674829,0.95228168,3213.4,3213.3,0.002]
[1767665675345,4.06425031,3213.4,3213.3,0.002]
[1767665679924,0.95228168,3213.4,3213.3,0.002]
[1767665681558,4.06425031,3213.4,3213.3,0.002]
[1767665683348,0.95228168,3213.4,3213.3,0.002]
[1767665683944,4.06425031,3213.4,3213.3,0.002]
[1767665684647,0.95228168,3213.4,3213.3,0.002]
[1767665687469,4.06425031,3213.4,3213.3,0.002]
[1767665688358,0.95228168,3213.4,3213.3,0.002]
[1767665694350,1.35870227,3213.4,3213.3,0.002]
[1767665696770,0.95228168,3213.4,3213.3,0.002]
[1767665697878,0.95228168,3213.4,3212.6,0.817]
[1767665697879,0.97874283,3213.3,3212.6,0.817]
[1767665698342,0.97874283,3213.1,3212.6,0.817]
[1767665698541,0.97874283,3213.1,3212.6,0.002]
[1767665699574,0.97874283,3213.1,3212.9,0.002]
[1767665700579,4.09101427,3213.1,3212.9,0.002]
[1767665700883,0.97874283,3213.0,3212.6,0.002]
[1767665701079,0.97874283,3213.0,3212.3,0.002]
[1767665701546,0.94189458,3212.8,3211.4,0.002]
[1767665701744,0.94189458,3212.6,3211.4,0.99500372]
[1767665701944,0.94189458,3212.4,3211.4,0.99500372]
[1767665702171,0.94189458,3212.4,3211.4,0.002]
[1767665702673,0.94189458,3212.2,3211.4,0.002]
[1767665702876,0.94189458,3212.1,3211.4,0.002]
[1767665706571,0.94189458,3212.1,3211.4,0.99500372]
[1767665711584,0.94189458,3212.1,3212.0,0.002]
[1767665713183,6.22413094,3213.3,3212.0,0.002]
[1767665713362,0.94189458,3213.0,3212.0,0.99500372]
[1767665713566,0.94189458,3212.8,3212.0,0.99500372]
[1767665714387,0.94189458,3212.6,3212.0,0.99500372]
[1767665715677,0.94189458,3212.6,3212.0,0.002]
[1767665716558,0.94189458,3212.4,3212.0,0.002]
[1767665718481,0.94189458,3212.4,3211.7,0.002]
[1767665718660,0.94189458,3212.2,3211.7,0.002]
[1767665718855,0.94189458,3212.5,3211.7,0.99500372]
[1767665719083,3.92877339,3212.6,3211.7,0.99500372]
[1767665719278,1.75789458,3212.6,3211.7,0.99500372]
[1767665719458,0.94189458,3212.5,3211.7,0.99500372]
[1767665719786,0.94189458,3212.4,3211.7,0.002]
[1767665720580,0.94189458,3212.2,3211.7,0.002]
[1767665721983,0.94189458,3212.8,3211.7,0.99500372]
[1767665722173,0.816,3212.6,3211.7,0.99500372]
[1767665722493,0.94189458,3212.5,3211.7,0.99500372]
[1767665722682,4.23052646,3212.5,3211.7,0.99500372]
[1767665723488,0.94189458,3212.4,3211.7,0.99500372]
[1767665723667,0.94189458,3212.4,3212.0,0.002]
[1767665724174,0.94189458,3212.4,3211.6,0.002]
[1767665724391,0.94189458,3212.4,3211.4,0.002]
[1767665724689,0.94189458,3212.0,3211.0,0.99500372]
[1767665726861,0.94189458,3211.9,3211.0,0.99500372]
[1767665727292,0.94189458,3211.9,3211.0,0.002]
[1767665728570,9.3401535,3212.0,3211.0,0.002]
[1767665728571,0.94189458,3211.6,3211.0,0.002]
[1767665729194,4.65036268,3211.7,3211.0,0.002]
[1767665729195,0.94189458,3211.4,3211.0,0.002]
[1767665729535,0.94189458,3211.3,3210.7,0.002]
[1767665729873,0.94189458,3211.5,3210.7,0.99500372]
[1767665730074,4.39478109,3211.6,3210.7,0.99500372]
[1767665731303,0.98525821,3212.2,3210.7,0.99500372]
[1767665731498,1.80125821,3211.9,3210.7,0.99500372]
[1767665731691,0.98525821,3211.8,3210.7,0.99500372]
[1767665732677,0.98525821,3211.8,3210.8,0.96851809]
[1767665733513,0.98525821,3211.8,3210.9,0.96851809]
[1767665733704,0.98525821,3211.8,3211.1,0.96851809]
[1767665734076,3.11347936,3211.9,3211.1,0.96851809]
[1767665735384,0.816,3212.0,3211.1,0.96851809]
[1767665735586,3.92932851,3212.0,3211.1,0.96851809]
[1767665735817,3.92932851,3212.0,3211.3,0.96851809]
[1767665736115,0.816,3212.0,3211.3,0.96851809]
[1767665736318,4.91458827,3212.0,3211.3,0.96851809]
[1767665736619,1.80125821,3212.0,3211.3,0.96851809]
[1767665737511,0.98525821,3212.0,3211.3,0.96851809]
[1767665739314,4.09862291,3212.0,3211.3,0.96851809]
[1767665740024,7.21198761,3212.0,3211.3,0.96851809]
[1767665740207,0.98525821,3211.9,3211.0,0.97051809]
[1767665740713,0.98525821,3211.9,3211.0,0.002]
[1767665741089,0.98525821,3211.7,3211.0,0.002]
[1767665741622,4.27329217,3211.9,3211.0,0.97051809]
[1767665741817,0.98525821,3212.0,3211.0,0.97051809]
[1767665742322,0.98525821,3212.2,3211.3,0.96851809]
[1767665742508,4.09838939,3212.2,3211.3,0.96851809]
[1767665747652,0.001,3211.9,3211.3,0.96851809]
[1767665759265,0.001,3211.6,3211.3,0.96851809]
[1767665759435,0.001,3211.6,3211.5,0.92282448]
[1767665759869,0.001,3211.9,3211.6,0.92282448]
[1767665760086,4.02440682,3212.6,3211.8,5.57318716]
[1767665760372,1.19830013,3212.5,3211.8,0.92282448]
[1767665760582,0.91164002,3212.5,3211.6,0.92282448]
[1767665760740,0.91164002,3212.4,3211.7,0.48515586]
[1767665761344,0.91164002,3212.4,3211.5,0.815]
[1767665761665,0.91164002,3212.4,3211.4,1.38404715]
[1767665761980,0.91164002,3212.4,3211.2,4.0898846]
[1767665762220,0.91164002,3212.4,3211.4,0.815]
[1767665762404,0.91164002,3212.4,3211.2,4.0898846]
[1767665762574,0.9789756,3212.2,3211.3,0.815]
[1767665763118,0.9789756,3212.2,3211.2,4.0898846]
[1767665763422,0.9789756,3212.2,3211.3,1.22398846]
[1767665764314,0.9789756,3212.5,3211.5,0.97578535]
[1767665764602,0.9789756,3212.5,3211.6,3.11371279]
[1767665764786,0.9789756,3212.5,3211.7,0.97578535]
[1767665764983,0.9789756,3212.5,3211.7,1.38473516]
[1767665768714,0.9789756,3212.5,3211.7,4.49834542]
[1767665769108,0.9789756,3212.5,3211.7,1.38473516]
[1767665769834,0.9789756,3212.5,3211.8,0.97578535]
[1767665771035,0.001,3212.2,3211.8,0.97578535]
[1767665771429,0.001,3212.2,3211.9,0.44983399]
[1767665771927,0.001,3212.2,3211.8,0.97578535]
[1767665774040,0.816,3212.7,3211.9,0.97578535]
[1767665774041,1.7949756,3212.7,3211.9,0.97578535]
[1767665774218,0.9789756,3212.7,3211.9,0.97578535]
[1767665776132,0.9789756,3212.9,3212.0,0.97578535]
[1767665776319,0.9789756,3212.9,3212.2,0.97578535]
[1767665777345,0.9789756,3212.9,3212.1,0.87395468]
[1767665777511,0.9789756,3212.9,3212.1,0.815]
[1767665777512,0.9789756,3212.8,3212.1,0.815]
[1767665777838,0.9789756,3212.8,3211.7,0.40894981]
[1767665778339,0.9789756,3212.6,3211.7,0.40894981]
[1767665779727,0.9789756,3212.5,3211.7,0.40894981]
[1767665780238,0.9789756,3212.5,3211.6,0.815]
[1767665781042,0.9789756,3212.5,3211.6,3.92869502]
[1767665781445,0.9789756,3212.5,3211.6,7.04240781]
[1767665781755,0.9789756,3212.5,3211.7,0.97578535]
[1767665782048,4.65036268,3212.3,3211.3,0.40898846]
[1767665782221,0.9789756,3212.2,3211.2,0.97578535]
[1767665782713,0.9789756,3212.2,3211.9,0.002]
[1767665782912,0.9799756,3212.2,3211.9,0.002]
[1767665783147,0.9789756,3212.1,3211.9,0.002]
[1767665787843,0.001,3212.2,3211.9,0.002]
[1767665790353,0.9799756,3212.2,3211.9,0.002]
[1767665790848,0.9799756,3212.2,3211.9,0.00067672]
[1767665792194,0.001,3212.2,3211.9,0.00067672]
[1767665793150,0.92331843,3212.2,3211.9,0.00067672]
[1767665795756,1.32696291,3212.2,3211.9,0.00067672]
[1767665796066,4.44010892,3212.2,3211.9,0.00067672]
[1767665796574,1.32696291,3212.2,3211.9,0.00067672]
[1767665799367,0.92331843,3212.2,3211.9,0.00067672]
[1767665804470,0.001,3212.2,3211.9,0.00067672]
[1767665804770,0.001,3212.2,3211.9,0.91827997]
[1767665806641,0.92231843,3213.0,3212.2,0.91760325]
[1767665806836,0.92231843,3213.0,3211.9,6.22746062]
[1767665807059,0.92231843,3213.0,3212.0,0.62585958]
[1767665807271,0.92231843,3213.0,3211.9,0.91827997]
[1767665807974,0.92231843,3212.9,3212.0,0.91760325]
[1767665810144,0.92231843,3212.9,3212.1,0.91760325]
[1767665811681,3.11219502,3213.2,3212.1,0.91760325]
[1767665811682,0.92231843,3213.1,3212.1,0.91760325]
[1767665812986,0.92231843,3213.1,3212.3,0.91760325]
[1767665813288,3.11199434,3213.4,3212.3,0.91760325]
[1767665813289,0.92231843,3213.3,3212.5,0.91760325]
[1767665815152,0.92231843,3213.3,3212.6,0.93178206]
[1767665816260,0.816,3213.5,3212.6,0.93178206]
[1767665816861,4.9081039,3213.5,3212.6,0.93178206]
[1767665817875,0.98021146,3213.4,3212.3,0.815]
[1767665818692,0.001,3213.0,3212.3,4.85977464]
[1767665818895,0.001,3213.0,3212.4,3.11293334]
[1767665819689,0.001,3213.0,3212.4,4.0447154]
[1767665820591,0.001,3213.0,3212.4,0.93178206]
[1767665821381,0.001,3213.0,3212.5,0.48597762]
[1767665822389,0.90160859,3213.0,3212.3,0.815]
[1767665822560,0.90160859,3213.0,3212.3,4.92150591]
[1767665822765,0.90160859,3213.0,3212.4,0.99348792]
[1767665823389,0.001,3213.0,3212.5,0.99348792]
[1767665823568,0.001,3213.0,3212.6,1.40412857]
[1767665824390,0.001,3213.0,3212.6,0.99348792]
[1767665826981,0.001,3213.0,3212.7,0.99348792]
[1767665827178,0.90060859,3213.5,3212.7,0.99348792]
[1767665828281,0.90060859,3213.5,3212.7,4.1061005]
[1767665828482,0.90160859,3213.7,3212.8,0.99348792]
[1767665828791,0.90160859,3213.7,3212.9,1.40409797]
[1767665829685,0.001,3213.7,3213.0,0.99348792]
[1767665829885,0.90160859,3213.7,3213.0,0.99348792]
[1767665830815,0.001,3213.7,3213.1,0.99348792]
[1767665832614,0.90160859,3213.7,3213.0,0.815]
[1767665832778,0.90160859,3213.7,3213.1,0.5333523]
[1767665834205,0.001,3213.7,3213.2,0.99348792]
[1767665834575,0.001,3213.7,3213.3,0.99348792]
[1767665840420,0.001,3213.7,3213.4,0.99348792]
[1767665840607,0.001,3214.0,3213.4,0.99348792]
[1767665840807,0.001,3214.0,3213.5,0.41055211]
[1767665841391,0.001,3214.0,3213.4,0.99348792]
[1767665842117,0.90160859,3214.0,3213.4,0.99348792]
[1767665842421,0.90160859,3213.7,3213.3,0.815]
[1767665842594,0.90160859,3213.7,3213.1,1.34702958]
[1767665842919,0.90160859,3213.7,3213.1,0.53202958]
[1767665843122,0.90160859,3213.7,3213.2,0.44593673]
[1767665845304,0.90160859,3213.7,3213.0,3.92735525]
[1767665846227,0.90160859,3213.7,3213.1,3.11225497]
[1767665846430,0.90160859,3213.7,3213.0,3.92727639]
[1767665846631,0.90160859,3213.7,3212.9,1.40609797]
[1767665846812,0.90160859,3213.7,3213.0,0.815]
[1767665849711,0.90160859,3213.7,3213.0,1.80848792]
[1767665850030,0.90160859,3213.7,3213.0,4.92084053]
[1767665850200,0.90160859,3213.7,3213.1,0.03112259]
[1767665851435,0.90160859,3213.7,3213.0,4.9208404]
[1767665851436,0.001,3213.7,3213.2,0.92418302]
[1767665851603,0.93978019,3213.7,3213.2,0.48515355]
[1767665851935,0.93978019,3213.7,3213.0,1.73918302]
[1767665852303,0.93978019,3213.7,3213.0,4.85152912]
[1767665855228,0.001,3213.7,3213.1,0.92418302]
[1767665856133,0.001,3214.0,3213.0,7.03970215]
[1767665856134,0.001,3214.0,3213.3,0.92418302]
[1767665858239,0.001,3214.0,3213.5,0.92418302]
[1767665858439,0.001,3214.0,3213.6,0.40361517]
[1767665862615,0.001,3214.0,3213.6,1.32779819]
[1767665863142,0.001,3214.0,3213.5,0.815]
[1767665863352,0.93978019,3214.0,3213.5,0.815]
[1767665865343,0.93978019,3214.0,3213.6,0.002]
[1767665865658,0.001,3213.7,3213.6,0.002]
[1767665865954,0.001,3214.0,3213.6,0.002]
[1767665866250,0.001,3214.0,3213.7,0.39288703]
[1767665866839,0.93878019,3214.4,3213.7,0.39288703]
[1767665867038,0.93878019,3214.4,3213.8,0.03111581]
[1767665867923,0.93878019,3214.4,3213.7,0.39288703]
[1767665868257,0.93878019,3214.4,3213.6,0.002]
[1767665869559,0.93878019,3214.3,3213.6,0.002]
[1767665870959,0.93878019,3214.3,3213.6,4.64486653]
[1767665871131,0.93878019,3214.3,3213.7,0.92418302]
[1767665871329,0.93978019,3214.5,3213.6,0.002]
[1767665872268,0.93978019,3214.5,3213.6,0.55890496]
[1767665873241,0.93978019,3214.5,3213.7,4.64286653]
[1767665873560,0.93978019,3214.5,3213.7,5.56704955]
[1767665874254,0.93978019,3214.5,3213.8,0.94542161]
[1767665874440,0.93978019,3214.5,3213.8,0.9143058]
[1767665874639,0.93978019,3214.5,3213.9,0.55571723]
[1767665874835,0.001,3214.5,3214.0,4.64286653]
[1767665875153,0.001,3214.5,3214.0,5.55717233]
[1767665878459,0.001,3214.5,3213.9,0.55771723]
[1767665878664,0.001,3214.2,3213.9,0.55771723]
[1767665878863,0.001,3214.2,3214.0,0.2287023]
[1767665879547,0.99293357,3214.5,3214.0,0.2287023]
[1767665883535,0.001,3214.5,3214.0,1.20377816]
[1767665883866,0.93710179,3214.8,3214.1,0.97507586]
[1767665889044,0.93710179,3215.1,3214.2,1.0061878]
[1767665889259,0.93710179,3215.1,3214.2,0.97507586]
[1767665889746,0.93710179,3215.1,3214.0,1.20377816]
[1767665889953,0.93710179,3215.1,3214.1,0.64043619]
[1767665890767,0.93710179,3215.0,3214.1,0.64043619]
[1767665890943,0.93710179,3215.0,3214.3,0.97507586]
[1767665891140,0.93710179,3215.0,3214.4,0.815]
[1767665891466,0.93710179,3215.0,3214.3,0.817]
[1767665892473,0.93710179,3214.7,3214.3,0.002]
[1767665893751,0.93710179,3214.6,3214.0,0.002]
[1767665893953,0.93710179,3214.4,3214.0,0.002]
[1767665894179,0.93710179,3214.4,3213.9,0.002]
[1767665895198,0.93710179,3214.3,3213.6,0.002]
[1767665895349,0.93710179,3214.3,3213.3,0.002]
[1767665895551,0.93710179,3214.0,3213.3,0.002]
[1767665895746,0.93710179,3213.7,3213.3,0.002]
[1767665899587,0.93710179,3213.6,3213.3,0.002]
[1767665900153,0.93710179,3213.6,3213.5,0.00067738]
[1767665900787,0.93710179,3214.0,3213.5,0.00067738]
[1767665901285,4.04850263,3214.0,3213.5,0.00067738]
[1767665901487,4.7644728,3214.0,3213.5,0.00067738]
[1767665901995,0.93710179,3213.9,3213.5,0.00067738]
[1767665902159,0.93710179,3213.8,3213.5,0.00067738]
[1767665902364,0.93710179,3214.3,3213.5,0.00067738]
[1767665904865,0.93710179,3214.1,3213.5,0.00067738]
[1767665905065,0.93710179,3214.0,3213.5,0.00067738]
[1767665906178,0.001,3213.7,3213.5,0.00067738]
[1767665909497,0.93810179,3213.7,3213.5,0.00067738]
[1767665912088,0.001,3213.7,3213.5,0.00067738]
[1767665919621,0.9338665,3213.7,3213.5,0.00067738]
[1767665920143,0.9328665,3213.6,3213.5,0.00067738]
[1767665920425,0.9328665,3213.6,3213.3,0.002]
[1767665921123,4.0447197,3213.6,3213.3,0.002]
[1767665923619,7.1565729,3213.6,3213.3,0.002]
[1767665923921,0.9328665,3213.5,3212.9,0.002]
[1767665924105,0.9328665,3213.4,3212.9,0.002]
[1767665924610,0.9328665,3213.4,3212.5,0.002]
[1767665924793,0.9328665,3213.2,3212.3,0.15291749]
[1767665924997,0.9328665,3213.0,3212.3,0.15291749]
[1767665925823,0.9328665,3212.8,3212.3,0.15291749]
[1767665926023,0.9328665,3212.6,3212.0,0.002]
[1767665926627,0.9328665,3212.5,3211.5,0.002]
[1767665927697,0.9328665,3212.3,3211.5,0.002]
[1767665929327,0.9328665,3212.3,3211.8,0.002]
[1767665930330,0.9328665,3212.1,3211.8,0.002]
[1767665930546,0.9328665,3212.7,3211.8,0.99815045]
[1767665930701,0.9328665,3212.6,3211.8,0.002]
[1767665933131,0.71580494,3212.7,3211.8,0.002]
[1767665933132,0.9328665,3212.4,3211.8,0.002]
[1767665935830,0.97058313,3212.2,3211.8,0.002]
[1767665937635,0.97058313,3212.1,3211.8,0.002]
[1767665938120,4.08381506,3212.1,3211.8,0.002]
[1767665938519,0.97058313,3212.1,3211.8,0.002]
[1767665938716,4.08381348,3212.1,3211.8,0.002]
[1767665939235,0.97058313,3212.1,3211.8,0.002]
[1767665940908,4.0838271,3212.1,3211.8,0.002]
[1767665941107,4.80351448,3212.1,3211.8,0.002]
[1767665941840,1.69027051,3212.1,3211.8,0.002]
[1767665942038,0.97058313,3212.1,3211.8,0.002]
[1767665942724,0.001,3212.3,3211.8,0.002]
[1767665942927,0.9520796,3212.2,3211.8,0.002]
[1767665944041,3.11403427,3212.3,3211.8,0.002]
[1767665944042,0.001,3212.3,3211.8,0.002]
[1767665944241,0.001,3212.3,3211.8,0.99883475]
[1767665949749,0.9520796,3212.2,3211.8,0.002]